[Event "Late-Titled-Tuesday-Blitz-October-10-2023"]
[Site "Chess.com"]
[Date "2023.10.10"]
[Round "9"]
[White "Smiechu"]
[Black "The_Princess_Moon"]
[Result "1-0"]
[WhiteElo "2514"]
[BlackElo "2313"]
[TimeControl "180+1"]
[EndTime "15:39:58 PDT"]
[Termination "Smiechu won by checkmate"]

1. e4 {[%clk 0:03:00.9]} 1... c5 {[%clk 0:02:59.3]} 2. Nf3 {[%clk 0:03:00.7]}
2... a6 {[%clk 0:02:59.4]} 3. Nc3 {[%clk 0:03:00]} 3... b5 {[%clk 0:02:59.2]} 4.
d4 {[%clk 0:02:55]} 4... cxd4 {[%clk 0:02:59]} 5. Nxd4 {[%clk 0:02:54.7]} 5...
Bb7 {[%clk 0:02:59.6]} 6. Bd3 {[%clk 0:02:52.7]} 6... Nc6 {[%clk 0:02:58.5]} 7.
Be3 {[%clk 0:02:49.1]} 7... Nxd4 {[%clk 0:02:53.4]} 8. Bxd4 {[%clk 0:02:49.2]}
8... d6 {[%clk 0:02:54.3]} 9. O-O {[%clk 0:02:48.5]} 9... Nf6 {[%clk 0:02:54]}
10. Qe2 {[%clk 0:02:42.3]} 10... g6 {[%clk 0:02:52.8]} 11. f4 {[%clk 0:02:38.9]}
11... Bg7 {[%clk 0:02:51]} 12. Nxb5 {[%clk 0:02:23.2]} 12... axb5 {[%clk
0:02:48]} 13. Bxb5+ {[%clk 0:02:23.1]} 13... Kf8 {[%clk 0:02:43.1]} 14. Bd3
{[%clk 0:02:17.3]} 14... Nd7 {[%clk 0:02:24.4]} 15. e5 {[%clk 0:02:10.6]} 15...
Ra5 {[%clk 0:02:03.6]} 16. Bc3 {[%clk 0:01:59.8]} 16... Rc5 {[%clk 0:01:47.6]}
17. Bb4 {[%clk 0:01:56.5]} 17... Rc8 {[%clk 0:01:37.2]} 18. exd6 {[%clk
0:01:43]} 18... Bd4+ {[%clk 0:01:18.7]} 19. Kh1 {[%clk 0:01:39.9]} 19... exd6
{[%clk 0:01:18.6]} 20. Bxd6+ {[%clk 0:01:37]} 20... Kg7 {[%clk 0:01:18.2]} 21.
c3 {[%clk 0:01:34.9]} 21... Bf6 {[%clk 0:01:14.9]} 22. a4 {[%clk 0:01:29.8]}
22... Re8 {[%clk 0:01:12.7]} 23. Qf2 {[%clk 0:01:29.2]} 23... Nb6 {[%clk
0:01:05.6]} 24. Be5 {[%clk 0:01:26]} 24... Qxd3 {[%clk 0:00:38.4]} 25. Bxf6+
{[%clk 0:01:22.4]} 25... Kxf6 {[%clk 0:00:39.3]} 26. Qxb6+ {[%clk 0:01:21.8]}
26... Bc6 {[%clk 0:00:34.8]} 27. Rad1 {[%clk 0:01:19.9]} 27... Qe2 {[%clk
0:00:25.5]} 28. Qd4+ {[%clk 0:01:16.2]} 28... Kf5 {[%clk 0:00:18.8]} 29. Qc5+
{[%clk 0:01:09.6]} 29... Kf6 {[%clk 0:00:15.2]} 30. Qd4+ {[%clk 0:00:49.8]}
30... Kf5 {[%clk 0:00:13.7]} 31. Rg1 {[%clk 0:00:45.6]} 31... Red8 {[%clk
0:00:09.5]} 32. Qc5+ {[%clk 0:00:35.5]} 32... Kf6 {[%clk 0:00:08.5]} 33. Rxd8
{[%clk 0:00:19.8]} 33... Bxg2+ {[%clk 0:00:07.6]} 34. Rxg2 {[%clk 0:00:19.9]}
34... Qf1+ {[%clk 0:00:04.8]} 35. Qg1 {[%clk 0:00:19.1]} 35... Qxg1+ {[%clk
0:00:05.2]} 36. Kxg1 {[%clk 0:00:18.5]} 36... Rxd8 {[%clk 0:00:06.1]} 37. b4
{[%clk 0:00:18.1]} 37... Rc8 {[%clk 0:00:05.2]} 38. Rc2 {[%clk 0:00:17.7]} 38...
Ke6 {[%clk 0:00:06.1]} 39. a5 {[%clk 0:00:17.7]} 39... Kd5 {[%clk 0:00:07]} 40.
c4+ {[%clk 0:00:17.8]} 40... Kd4 {[%clk 0:00:06.9]} 41. c5 {[%clk 0:00:17.6]}
41... Kd3 {[%clk 0:00:03.4]} 42. Rc1 {[%clk 0:00:17.2]} 42... f5 {[%clk
0:00:03.7]} 43. c6 {[%clk 0:00:17]} 43... Ke4 {[%clk 0:00:02.6]} 44. c7 {[%clk
0:00:17.2]} 44... Kxf4 {[%clk 0:00:03.5]} 45. b5 {[%clk 0:00:17.6]} 45... Ke3
{[%clk 0:00:03.3]} 46. b6 {[%clk 0:00:17.9]} 46... f4 {[%clk 0:00:03.5]} 47. b7
{[%clk 0:00:18.1]} 47... Rf8 {[%clk 0:00:03.3]} 48. c8=Q {[%clk 0:00:17.9]}
48... Rf5 {[%clk 0:00:04.1]} 49. b8=Q {[%clk 0:00:17.5]} 49... f3 {[%clk
0:00:03.9]} 50. Qc3+ {[%clk 0:00:16.7]} 50... Ke2 {[%clk 0:00:02.8]} 51. Qe8+
{[%clk 0:00:16.4]} 51... Re5 {[%clk 0:00:01.9]} 52. Qexe5# {[%clk 0:00:16.4]}
1-0

[Event "Late-Titled-Tuesday-Blitz-October-10-2023"]
[Site "Chess.com"]
[Date "2023.10.10"]
[Round "9"]
[White "hakanazeri2"]
[Black "Necromon"]
[Result "0-1"]
[WhiteElo "2593"]
[BlackElo "2490"]
[TimeControl "180+1"]
[EndTime "15:40:01 PDT"]
[Termination "Necromon won on time"]

1. Nf3 {[%clk 0:02:56.4]} 1... Nf6 {[%clk 0:02:56.7]} 2. c4 {[%clk 0:02:55.3]}
2... e6 {[%clk 0:02:56.5]} 3. g3 {[%clk 0:02:55.1]} 3... d5 {[%clk 0:02:56.6]}
4. d4 {[%clk 0:02:49.9]} 4... Be7 {[%clk 0:02:56.9]} 5. Bg2 {[%clk 0:02:40.9]}
5... O-O {[%clk 0:02:53.7]} 6. O-O {[%clk 0:02:41.4]} 6... dxc4 {[%clk
0:02:53.9]} 7. Qc2 {[%clk 0:02:41.3]} 7... a6 {[%clk 0:02:52.6]} 8. a4 {[%clk
0:02:39.3]} 8... Nbd7 {[%clk 0:02:52.8]} 9. Rd1 {[%clk 0:02:10.2]} 9... Rb8
{[%clk 0:02:48.3]} 10. Qxc4 {[%clk 0:02:03]} 10... b5 {[%clk 0:02:48.4]} 11. Qc2
{[%clk 0:02:00.8]} 11... Bb7 {[%clk 0:02:42.2]} 12. Bf4 {[%clk 0:01:55.6]} 12...
Nd5 {[%clk 0:02:29.7]} 13. axb5 {[%clk 0:01:44.3]} 13... Nxf4 {[%clk 0:02:25.6]}
14. gxf4 {[%clk 0:01:42.6]} 14... axb5 {[%clk 0:02:25.3]} 15. Nc3 {[%clk
0:01:39.2]} 15... b4 {[%clk 0:02:21.9]} 16. Ne4 {[%clk 0:01:36]} 16... Qc8
{[%clk 0:02:04.4]} 17. Rac1 {[%clk 0:01:21.9]} 17... Bxe4 {[%clk 0:01:56.5]} 18.
Qxe4 {[%clk 0:01:20.3]} 18... c5 {[%clk 0:01:56.8]} 19. Ng5 {[%clk 0:01:12.9]}
19... g6 {[%clk 0:01:47.8]} 20. d5 {[%clk 0:00:58.3]} 20... Nf6 {[%clk
0:01:21.2]} 21. Qe3 {[%clk 0:00:56.8]} 21... h6 {[%clk 0:01:20.8]} 22. d6 {[%clk
0:00:21.2]} 22... Bd8 {[%clk 0:01:02.2]} 23. Rxc5 {[%clk 0:00:18.8]} 23... Qd7
{[%clk 0:00:53.9]} 24. Bc6 {[%clk 0:00:12]} 24... Qa7 {[%clk 0:00:53.5]} 25. Ne4
{[%clk 0:00:09.1]} 25... Nxe4 {[%clk 0:00:50]} 26. Bxe4 {[%clk 0:00:09.5]} 26...
Bb6 {[%clk 0:00:50.2]} 27. Rdc1 {[%clk 0:00:09.6]} 27... Rbc8 {[%clk 0:00:48.5]}
28. Rxc8 {[%clk 0:00:03.3]} 28... Bxe3 {[%clk 0:00:48.5]} 29. Rxf8+ {[%clk
0:00:03.6]} 29... Kxf8 {[%clk 0:00:47.9]} 30. Rc8+ {[%clk 0:00:04.5]} 30... Kg7
{[%clk 0:00:47.5]} 31. fxe3 {[%clk 0:00:02.5]} 31... Qxe3+ {[%clk 0:00:47]} 32.
Kf1 {[%clk 0:00:03]} 32... Qxf4+ {[%clk 0:00:37.7]} 33. Bf3 {[%clk 0:00:03.6]}
33... Qd4 {[%clk 0:00:37.6]} 34. Rd8 {[%clk 0:00:02.8]} 34... Qxb2 {[%clk
0:00:36.2]} 35. d7 {[%clk 0:00:03.3]} 35... Qa1+ {[%clk 0:00:31.1]} 36. Kg2
{[%clk 0:00:03]} 36... Qd1 {[%clk 0:00:30.7]} 37. Bc6 {[%clk 0:00:01.7]} 37...
Qxe2+ {[%clk 0:00:30.8]} 38. Kg1 {[%clk 0:00:02.2]} 38... Qe3+ {[%clk 0:00:29]}
39. Kf1 {[%clk 0:00:01]} 39... Qc1+ {[%clk 0:00:25.4]} 40. Kf2 {[%clk
0:00:01.6]} 40... Qxc6 {[%clk 0:00:25.4]} 41. Rg8+ {[%clk 0:00:01.9]} 41... Kxg8
{[%clk 0:00:25.9]} 42. d8=Q+ {[%clk 0:00:02.8]} 42... Kg7 {[%clk 0:00:26.7]} 43.
Qd4+ {[%clk 0:00:03.1]} 43... Kh7 {[%clk 0:00:26]} 44. Qxb4 {[%clk 0:00:03.4]}
44... h5 {[%clk 0:00:25]} 45. Qe7 {[%clk 0:00:03.6]} 45... Kg8 {[%clk
0:00:23.3]} 46. Qd8+ {[%clk 0:00:04]} 46... Kg7 {[%clk 0:00:23.6]} 47. Qd4+
{[%clk 0:00:04.4]} 47... Kh7 {[%clk 0:00:23.3]} 48. Qf6 {[%clk 0:00:03.6]} 48...
Qe8 {[%clk 0:00:23.4]} 49. Kg3 {[%clk 0:00:03]} 49... e5 {[%clk 0:00:23.7]} 50.
Kh4 {[%clk 0:00:02.5]} 50... e4 {[%clk 0:00:24.1]} 51. Qf2 {[%clk 0:00:01.3]}
51... e3 {[%clk 0:00:24.1]} 0-1

[Event "Late-Titled-Tuesday-Blitz-October-10-2023"]
[Site "Chess.com"]
[Date "2023.10.10"]
[Round "9"]
[White "rasmussvane"]
[Black "KaydenTroffChess"]
[Result "1-0"]
[WhiteElo "3006"]
[BlackElo "2816"]
[TimeControl "180+1"]
[EndTime "15:40:02 PDT"]
[Termination "rasmussvane won by resignation"]

1. Nf3 {[%clk 0:03:00.9]} 1... Nf6 {[%clk 0:02:58.7]} 2. g3 {[%clk 0:02:59.3]}
2... g6 {[%clk 0:02:58.9]} 3. Bg2 {[%clk 0:02:58.8]} 3... Bg7 {[%clk 0:02:59.2]}
4. d4 {[%clk 0:02:58.5]} 4... O-O {[%clk 0:02:59.5]} 5. O-O {[%clk 0:02:57.4]}
5... d5 {[%clk 0:02:59.4]} 6. c4 {[%clk 0:02:55.3]} 6... c6 {[%clk 0:02:59.4]}
7. Qb3 {[%clk 0:02:55.2]} 7... Qb6 {[%clk 0:02:58.6]} 8. Nc3 {[%clk 0:02:55.2]}
8... Be6 {[%clk 0:02:58.1]} 9. Na4 {[%clk 0:02:50.7]} 9... Qxb3 {[%clk
0:02:53.6]} 10. axb3 {[%clk 0:02:51.6]} 10... dxc4 {[%clk 0:02:54.1]} 11. Nb6
{[%clk 0:02:24.4]} 11... axb6 {[%clk 0:02:52.6]} 12. Rxa8 {[%clk 0:02:25.3]}
12... cxb3 {[%clk 0:02:51.9]} 13. Bf4 {[%clk 0:02:25.1]} 13... Na6 {[%clk
0:02:40.9]} 14. Ra7 {[%clk 0:02:15.6]} 14... Bc8 {[%clk 0:02:35.2]} 15. Nd2
{[%clk 0:02:13.1]} 15... Nd7 {[%clk 0:01:41.8]} 16. Nxb3 {[%clk 0:02:07.6]}
16... e5 {[%clk 0:01:40.5]} 17. Be3 {[%clk 0:01:59.7]} 17... Nb4 {[%clk
0:01:35.9]} 18. Rc1 {[%clk 0:01:56]} 18... exd4 {[%clk 0:00:58]} 19. Bxd4 {[%clk
0:01:55.2]} 19... Bxd4 {[%clk 0:00:54.7]} 20. Nxd4 {[%clk 0:01:56.1]} 20... Nc5
{[%clk 0:00:54.9]} 21. Rc4 {[%clk 0:01:50.7]} 21... Nca6 {[%clk 0:00:47.8]} 22.
e3 {[%clk 0:01:17.4]} 22... b5 {[%clk 0:00:36.9]} 23. Rc1 {[%clk 0:01:13.4]}
23... Rd8 {[%clk 0:00:33.2]} 24. Ra8 {[%clk 0:01:06.5]} 24... Nc7 {[%clk
0:00:32.8]} 25. Raa1 {[%clk 0:01:01.9]} 25... Nca6 {[%clk 0:00:30]} 26. Rd1
{[%clk 0:01:01.8]} 26... Bg4 {[%clk 0:00:27.8]} 27. f3 {[%clk 0:00:55]} 27...
Bc8 {[%clk 0:00:25.8]} 28. Nxb5 {[%clk 0:00:51.8]} 28... Rxd1+ {[%clk
0:00:17.2]} 29. Rxd1 {[%clk 0:00:52.7]} 29... Be6 {[%clk 0:00:14.8]} 30. Nd4
{[%clk 0:00:44.6]} 30... Ba2 {[%clk 0:00:13.6]} 31. Bf1 {[%clk 0:00:38]} 31...
Nc5 {[%clk 0:00:10.6]} 32. Kf2 {[%clk 0:00:38.1]} 32... Na4 {[%clk 0:00:08.9]}
33. Rd2 {[%clk 0:00:37.3]} 33... Nc5 {[%clk 0:00:08.4]} 34. e4 {[%clk
0:00:36.3]} 34... Kg7 {[%clk 0:00:08.6]} 35. Ke3 {[%clk 0:00:36.8]} 35... Na4
{[%clk 0:00:07.5]} 36. Be2 {[%clk 0:00:34.9]} 36... Nc5 {[%clk 0:00:07.5]} 37.
Nc2 {[%clk 0:00:34.1]} 37... Nxc2+ {[%clk 0:00:04.8]} 38. Rxc2 {[%clk 0:00:35]}
38... b6 {[%clk 0:00:05.1]} 39. Rd2 {[%clk 0:00:33.4]} 39... Nb3 {[%clk
0:00:05]} 40. Rd6 {[%clk 0:00:32.8]} 40... c5 {[%clk 0:00:04.3]} 41. Rxb6 {[%clk
0:00:32.5]} 41... Nd4 {[%clk 0:00:04.5]} 42. Rb7 {[%clk 0:00:27.6]} 42... Ne6
{[%clk 0:00:03.1]} 43. Ra7 {[%clk 0:00:27.2]} 43... Bb3 {[%clk 0:00:02.9]} 44.
f4 {[%clk 0:00:27.4]} 44... Nd4 {[%clk 0:00:03]} 45. Rc7 {[%clk 0:00:26.1]}
45... Ne6 {[%clk 0:00:02.7]} 46. Rb7 {[%clk 0:00:26]} 46... Ba2 {[%clk
0:00:01.8]} 47. Ra7 {[%clk 0:00:20.1]} 47... Bb3 {[%clk 0:00:01.6]} 48. Ra5
{[%clk 0:00:20.4]} 48... Nd4 {[%clk 0:00:02.2]} 49. Rxc5 {[%clk 0:00:20.1]}
49... Ne6 {[%clk 0:00:03.1]} 50. Rc3 {[%clk 0:00:19.6]} 50... Ba4 {[%clk
0:00:03.3]} 51. b4 {[%clk 0:00:20]} 51... Bd7 {[%clk 0:00:04.2]} 52. b5 {[%clk
0:00:20.3]} 52... Bxb5 {[%clk 0:00:03.6]} 53. Bxb5 {[%clk 0:00:20.5]} 53... Kh6
{[%clk 0:00:04.3]} 54. Be2 {[%clk 0:00:20.5]} 54... Ng7 {[%clk 0:00:04.4]} 55.
Rc7 {[%clk 0:00:20.5]} 55... f5 {[%clk 0:00:05.3]} 56. e5 {[%clk 0:00:20.1]}
56... Ne6 {[%clk 0:00:05.7]} 57. Rc6 {[%clk 0:00:19.1]} 57... Ng7 {[%clk
0:00:06.6]} 58. e6 {[%clk 0:00:19.1]} 58... Ne8 {[%clk 0:00:07.5]} 59. e7 {[%clk
0:00:19.3]} 59... Ng7 {[%clk 0:00:08.1]} 60. Rc8 {[%clk 0:00:19.6]} 60... g5
{[%clk 0:00:09]} 61. e8=Q {[%clk 0:00:19.6]} 61... gxf4+ {[%clk 0:00:09.5]} 62.
Kxf4 {[%clk 0:00:19.6]} 62... Nxe8 {[%clk 0:00:09.1]} 63. Rxe8 {[%clk
0:00:20.5]} 63... Kg6 {[%clk 0:00:09.7]} 64. Re6+ {[%clk 0:00:20.9]} 1-0

[Event "Late-Titled-Tuesday-Blitz-October-10-2023"]
[Site "Chess.com"]
[Date "2023.10.10"]
[Round "9"]
[White "Arystanner"]
[Black "The_Straightforward_Rook"]
[Result "1-0"]
[WhiteElo "2807"]
[BlackElo "2548"]
[TimeControl "180+1"]
[EndTime "15:40:02 PDT"]
[Termination "Arystanner won by resignation"]

1. d4 {[%clk 0:03:00.9]} 1... Nf6 {[%clk 0:02:58.8]} 2. c4 {[%clk 0:03:01.7]}
2... e6 {[%clk 0:02:58.7]} 3. Nf3 {[%clk 0:03:02.5]} 3... b6 {[%clk 0:02:58.9]}
4. g3 {[%clk 0:03:03.1]} 4... Ba6 {[%clk 0:02:58.7]} 5. Bg2 {[%clk 0:03:03.9]}
5... Bxc4 {[%clk 0:02:54.7]} 6. Nc3 {[%clk 0:03:04.7]} 6... c6 {[%clk
0:02:48.7]} 7. e4 {[%clk 0:03:03.5]} 7... Bb4 {[%clk 0:02:44.9]} 8. Ne5 {[%clk
0:02:48.9]} 8... Ba6 {[%clk 0:02:42]} 9. Qa4 {[%clk 0:02:48.8]} 9... Qe7 {[%clk
0:02:39.8]} 10. Bg5 {[%clk 0:02:47.6]} 10... h6 {[%clk 0:02:36.7]} 11. Be3
{[%clk 0:02:37.8]} 11... O-O {[%clk 0:02:32.7]} 12. a3 {[%clk 0:02:33.6]} 12...
Bxc3+ {[%clk 0:02:28.9]} 13. bxc3 {[%clk 0:02:34.5]} 13... Rc8 {[%clk
0:02:17.9]} 14. Qb4 {[%clk 0:02:20]} 14... d6 {[%clk 0:02:03.8]} 15. Nc4 {[%clk
0:01:56.1]} 15... c5 {[%clk 0:02:01]} 16. dxc5 {[%clk 0:01:56.4]} 16... dxc5
{[%clk 0:01:55]} 17. Qb3 {[%clk 0:01:56.6]} 17... e5 {[%clk 0:01:48.4]} 18. Nd2
{[%clk 0:01:48]} 18... Nc6 {[%clk 0:01:46.5]} 19. Bf1 {[%clk 0:01:45.1]} 19...
Qb7 {[%clk 0:01:39.4]} 20. Bb5 {[%clk 0:01:43.1]} 20... Na5 {[%clk 0:01:35.3]}
21. Qa4 {[%clk 0:01:41.4]} 21... Bxb5 {[%clk 0:01:35.1]} 22. Qxb5 {[%clk
0:01:42.3]} 22... Nxe4 {[%clk 0:01:33.9]} 23. Nxe4 {[%clk 0:01:43.2]} 23... Qxe4
{[%clk 0:01:34]} 24. O-O {[%clk 0:01:44]} 24... Rd8 {[%clk 0:01:29.8]} 25. Rfe1
{[%clk 0:01:42.4]} 25... Qc4 {[%clk 0:01:27.4]} 26. Qb2 {[%clk 0:01:42]} 26...
Rd3 {[%clk 0:01:24.4]} 27. Rac1 {[%clk 0:01:41.3]} 27... Rad8 {[%clk 0:01:23.2]}
28. h4 {[%clk 0:01:35.7]} 28... f6 {[%clk 0:01:21.5]} 29. Qe2 {[%clk 0:01:35.1]}
29... Rxc3 {[%clk 0:01:12.3]} 30. Qh5 {[%clk 0:01:29.9]} 30... Rxc1 {[%clk
0:01:07.6]} 31. Rxc1 {[%clk 0:01:30.8]} 31... Qf7 {[%clk 0:01:07.9]} 32. Qg4
{[%clk 0:01:31.2]} 32... Qd7 {[%clk 0:01:07.2]} 33. Qg6 {[%clk 0:01:29.6]} 33...
Qf7 {[%clk 0:01:05.2]} 34. Qg4 {[%clk 0:01:26.1]} 34... Nb3 {[%clk 0:01:02.8]}
35. Rb1 {[%clk 0:01:22.9]} 35... Nd4 {[%clk 0:01:01]} 36. Qd1 {[%clk 0:01:01.8]}
36... f5 {[%clk 0:00:59.1]} 37. Qa4 {[%clk 0:01:01.8]} 37... f4 {[%clk
0:00:56.5]} 38. Bxd4 {[%clk 0:01:02.4]} 38... Rxd4 {[%clk 0:00:52.4]} 39. Qc6
{[%clk 0:01:02.6]} 39... Kh7 {[%clk 0:00:44]} 40. Re1 {[%clk 0:01:01.4]} 40...
fxg3 {[%clk 0:00:34.3]} 41. fxg3 {[%clk 0:01:01.6]} 41... Qg6 {[%clk 0:00:32.2]}
42. Qg2 {[%clk 0:00:53.9]} 42... Rd3 {[%clk 0:00:30.7]} 43. Kh2 {[%clk
0:00:53.9]} 43... Rc3 {[%clk 0:00:23.1]} 44. Rxe5 {[%clk 0:00:42.4]} 44... Rxa3
{[%clk 0:00:20.2]} 45. h5 {[%clk 0:00:39.3]} 45... Qd3 {[%clk 0:00:18.4]} 46.
Qf2 {[%clk 0:00:36]} 46... Rc3 {[%clk 0:00:17.8]} 47. Kh3 {[%clk 0:00:27.3]}
47... Rc2 {[%clk 0:00:15.1]} 48. Qf7 {[%clk 0:00:25.1]} 48... Rc3 {[%clk
0:00:11.9]} 49. Qf4 {[%clk 0:00:22.7]} 49... Qd7+ {[%clk 0:00:11.2]} 50. Kh4
{[%clk 0:00:17.7]} 50... Qd8+ {[%clk 0:00:09.1]} 51. Kh3 {[%clk 0:00:18.2]}
51... Qg5 {[%clk 0:00:08.4]} 52. Rxg5 {[%clk 0:00:18]} 52... hxg5 {[%clk
0:00:09]} 53. Qxg5 {[%clk 0:00:18.4]} 53... a5 {[%clk 0:00:09.2]} 54. Qg6+
{[%clk 0:00:18.8]} 54... Kg8 {[%clk 0:00:09.1]} 55. h6 {[%clk 0:00:19.5]} 1-0

[Event "Late-Titled-Tuesday-Blitz-October-10-2023"]
[Site "Chess.com"]
[Date "2023.10.10"]
[Round "9"]
[White "Qvalda"]
[Black "midedu"]
[Result "1-0"]
[WhiteElo "2393"]
[BlackElo "2090"]
[TimeControl "180+1"]
[EndTime "15:40:05 PDT"]
[Termination "Qvalda won on time"]

1. Nf3 {[%clk 0:03:00.9]} 1... Nf6 {[%clk 0:02:58.5]} 2. g3 {[%clk 0:03:00.5]}
2... d5 {[%clk 0:02:57.3]} 3. Bg2 {[%clk 0:02:59.8]} 3... c5 {[%clk 0:02:54.5]}
4. c4 {[%clk 0:02:44.5]} 4... Nc6 {[%clk 0:02:51.8]} 5. O-O {[%clk 0:02:41.1]}
5... d4 {[%clk 0:02:50.1]} 6. e3 {[%clk 0:02:40.5]} 6... g6 {[%clk 0:02:39]} 7.
exd4 {[%clk 0:02:40]} 7... cxd4 {[%clk 0:02:38.8]} 8. d3 {[%clk 0:02:38.1]} 8...
Bg7 {[%clk 0:02:38.6]} 9. Re1 {[%clk 0:02:37.8]} 9... O-O {[%clk 0:02:38.2]} 10.
Ne5 {[%clk 0:02:36.9]} 10... Nxe5 {[%clk 0:02:33.9]} 11. Rxe5 {[%clk 0:02:37.8]}
11... e6 {[%clk 0:02:31.3]} 12. Re1 {[%clk 0:02:34.9]} 12... Re8 {[%clk
0:02:22.9]} 13. b4 {[%clk 0:02:33.3]} 13... e5 {[%clk 0:02:20.3]} 14. b5 {[%clk
0:02:32.6]} 14... h6 {[%clk 0:02:19]} 15. Nd2 {[%clk 0:02:32.1]} 15... Bg4
{[%clk 0:02:15]} 16. Qc2 {[%clk 0:02:30.4]} 16... Qc7 {[%clk 0:02:12.9]} 17. Ne4
{[%clk 0:02:24.4]} 17... Nxe4 {[%clk 0:02:06]} 18. Bxe4 {[%clk 0:02:25.3]} 18...
Rac8 {[%clk 0:02:03.8]} 19. a4 {[%clk 0:02:21.7]} 19... Be6 {[%clk 0:01:45.2]}
20. Bd2 {[%clk 0:02:04.3]} 20... f5 {[%clk 0:01:44]} 21. Bg2 {[%clk 0:02:03.5]}
21... Bf7 {[%clk 0:01:42.4]} 22. Qc1 {[%clk 0:01:52.7]} 22... Kh7 {[%clk
0:01:41.6]} 23. a5 {[%clk 0:01:52.1]} 23... Qe7 {[%clk 0:01:32.2]} 24. a6 {[%clk
0:01:49]} 24... b6 {[%clk 0:01:29.9]} 25. Qb1 {[%clk 0:01:42.4]} 25... Qd6
{[%clk 0:01:05.7]} 26. Bb4 {[%clk 0:01:36.6]} 26... Qd8 {[%clk 0:01:04.5]} 27.
Bb7 {[%clk 0:01:32.8]} 27... Rc7 {[%clk 0:01:03.6]} 28. Bc6 {[%clk 0:01:28.3]}
28... Re6 {[%clk 0:00:58]} 29. c5 {[%clk 0:01:24.3]} 29... Rexc6 {[%clk
0:00:49.6]} 30. bxc6 {[%clk 0:01:23.7]} 30... Rxc6 {[%clk 0:00:49.9]} 31. cxb6
{[%clk 0:01:03.5]} 31... Qxb6 {[%clk 0:00:45.6]} 32. Bd2 {[%clk 0:00:55]} 32...
Qd8 {[%clk 0:00:43.6]} 33. Qb7 {[%clk 0:00:49.2]} 33... Rc7 {[%clk 0:00:41.9]}
34. Ba5 {[%clk 0:00:40.5]} 34... Rxb7 {[%clk 0:00:41.8]} 35. Bxd8 {[%clk
0:00:40.2]} 35... Rd7 {[%clk 0:00:41.6]} 36. Ba5 {[%clk 0:00:30.7]} 36... Bd5
{[%clk 0:00:39.4]} 37. Rec1 {[%clk 0:00:27.9]} 37... e4 {[%clk 0:00:34.5]} 38.
Rc7 {[%clk 0:00:25.4]} 38... Rd6 {[%clk 0:00:24]} 39. Rxa7 {[%clk 0:00:19.4]}
39... h5 {[%clk 0:00:20.3]} 40. Bd2 {[%clk 0:00:16]} 40... e3 {[%clk 0:00:19.7]}
41. Be1 {[%clk 0:00:12.5]} 41... f4 {[%clk 0:00:18.3]} 42. Re7 {[%clk
0:00:10.6]} 42... Rd8 {[%clk 0:00:13.2]} 43. a7 {[%clk 0:00:10.1]} 43... Bf3
{[%clk 0:00:10.8]} 44. gxf4 {[%clk 0:00:08.6]} 44... e2 {[%clk 0:00:09.7]} 45.
h4 {[%clk 0:00:07.7]} 45... Kh6 {[%clk 0:00:07.1]} 46. Rc7 {[%clk 0:00:03.7]}
46... Bf6 {[%clk 0:00:06.6]} 47. Kh2 {[%clk 0:00:03.5]} 47... Bxh4 {[%clk
0:00:06.5]} 48. Rc4 {[%clk 0:00:02.9]} 48... Bf6 {[%clk 0:00:05.6]} 49. Rb4
{[%clk 0:00:02.5]} 49... h4 {[%clk 0:00:05.6]} 50. Rb8 {[%clk 0:00:02.4]} 50...
Rd5 {[%clk 0:00:04.3]} 51. a8=Q {[%clk 0:00:02.6]} 51... Rf5 {[%clk 0:00:01.5]}
52. Qxf3 {[%clk 0:00:02.7]} 1-0